fUSD/lending_fUSD_20240613
["ID","MTS","AMOUNT","RATE_DAILY","PERIOD"]
[329383224,1718303433100,-1000.0,0.000139,2]
[329383225,1718303433117,-7500.0,0.000139,2]
[329383226,1718303433128,-324.9641726,0.000139,2]
[329383227,1718303433141,-647.10124214,0.000139,2]
[329383228,1718303433151,-1637.02338364,0.000139,2]
[329383229,1718303433168,-200.0,0.00013904,2]
[329383230,1718303433189,-17418.91915268,0.00013973,2]
[329383231,1718303433203,-7058.57884732,0.00013973,2]
[329383232,1718303433217,-206.05,0.0001399,3]
[329383233,1718303433229,-263.49215154,0.00013998,2]
[329383234,1718303433241,-155.0,0.00013998,2]
[329383235,1718303433260,-281.35964641,0.00013998,2]
[329383236,1718303433272,-450.95924719,0.00013998,2]
[329383237,1718303433289,-536.03816007,0.00013998,2]
[329383238,1718303433316,-2810.96529771,0.00013998,2]
[329383239,1718303433343,-364.20577069,0.00013998,2]
[329383240,1718303433355,-2195.01899183,0.00013998,2]
[329383241,1718303433374,-155.0,0.00013998,2]
[329383242,1718303433385,-545.75067402,0.00013998,2]
[329383243,1718303433400,-273.90596587,0.00013998,2]
[329383244,1718303433437,-715.98008293,0.00013998,2]
[329383245,1718303433461,-155.20249672,0.00013998,2]
[329383246,1718303433485,-2823.25950554,0.00013998,2]
[329383247,1718303433497,-625.97046574,0.00013998,2]
[329383248,1718303433516,-3066.55001275,0.00013998,2]
[329383249,1718303433528,-325.48556434,0.00013998,2]
[329383250,1718303433540,-253.72066577,0.00013998,2]
[329383251,1718303433580,-755.18299949,0.00013998,2]
[329383252,1718303433591,-1277.45304415,0.00013998,2]
[329383253,1718303433613,-421.86384512,0.00013998,2]
[329383254,1718303433631,-269.30164163,0.00013998,2]
[329383255,1718303433643,-157.89756728,0.00013998,2]
[329383256,1718303433671,-285.06194114,0.00013998,2]
[329383257,1718303433689,-200.34025367,0.00013998,2]
[329383258,1718303433713,-193.24307856,0.00013998,2]
[329383259,1718303433729,-507.0777849,0.00013998,2]
[329383260,1718303433752,-155.0,0.00013998,2]
[329383261,1718303433776,-10235.59497564,0.00013998,2]
[329383262,1718303433802,-1247.36037009,0.00013998,2]
[329383263,1718303433814,-1625.52061624,0.00013999,2]
[329383264,1718303433828,-18929.25893428,0.00014,2]
[329383265,1718303433843,-10834.83204039,0.00014,2]
[329383266,1718303433902,-895.19185277,0.00014,2]
[329383267,1718303434013,-700.67700589,0.00014,2]
[329383268,1718303434316,-87585.92521964,0.00014,2]
[329383270,1718303434348,-25185.08113538,0.00014,2]
[329383272,1718303434361,-9235.78643565,0.00014,2]
[329383274,1718303434380,-278.32388548,0.00014,2]
[329383276,1718303434422,-626.33967887,0.00014,2]
[329383278,1718303434439,-1054.71998718,0.00014,2]
[329383280,1718303434489,-425.4028204,0.00014,2]
[329383282,1718303434503,-635.97483763,0.00014,2]
[329383284,1718303434517,-386.97857912,0.00014,2]
[329383287,1718303434560,-41801.30093121,0.00014,2]
[329383289,1718303434581,-1103.09924829,0.00014,2]
[329383311,1718303443854,-65914.57601211,0.00014,2]
[329383312,1718303443873,-271.7099987,0.00014,2]
[329383313,1718303444490,-65312.83688497,0.00014,2]
[329383314,1718303444698,-325.48572995,0.00014,2]
[329383315,1718303444911,-299.913846,0.00014,2]
[329383363,1718303447412,-117413.87481916,0.00014,2]
[329383364,1718303447734,-11263.50688544,0.00014,2]
[329383365,1718303448720,-4485.92499844,0.00014,2]
[329383366,1718303448795,-393.16132793,0.00014,2]
[329383367,1718303449021,-544.49802541,0.00014,2]
[329383368,1718303449221,-942.7558439,0.00013999,2]
[329383369,1718303449233,-35496.53732717,0.00014,2]
[329383371,1718303449625,-184196.20815884,0.00014,2]
[329383373,1718303449661,-356151.39449573,0.00014,2]
[329383774,1718303512985,-5703.0609,0.00011168,2]
[329383777,1718303898646,486.31,0.00011014,2]
[329383778,1718303925063,-525.69562197,0.00011167,2]
[329383779,1718303925104,-74.30437803,0.00011168,2]
[329383785,1718304385255,-4090.0,0.00011059,2]
[329383788,1718304436431,197.46491076,0.00010961,2]
[329383789,1718304439220,-2370.1801588,0.00011058,2]
[329383790,1718304439256,-150.0,0.00011061,2]
[329383791,1718304439284,-3386.32623842,0.00011167,2]
[329383792,1718304439309,-675.69562197,0.00011168,2]
[329383793,1718304439350,-210.0,0.00012167,2]
[329383794,1718304439377,-531.15011943,0.00012495,2]
[329383795,1718304439408,-157.63013088,0.00012496,2]
[329383796,1718304439439,-300.0,0.00012496,2]
[329383797,1718304439490,-12613.8661,0.00012497,2]
[329383798,1718304439533,-424.40050855,0.00012598,2]
[329383799,1718304439562,-250.0,0.00012615,2]
[329383800,1718304439600,-160.0,0.00012672,2]
[329383801,1718304439647,-760.36,0.00012763,2]
[329383802,1718304439682,-840.0,0.00012933,2]
[329383803,1718304439708,-1955.51774149,0.00013297,2]
[329383804,1718304439745,-300.0,0.000135,4]
[329383805,1718304439771,-167.5,0.00013571,2]
[329383806,1718304439809,-374.37674997,0.000136,4]
[329383807,1718304519461,2664.9522,0.00010959,2]
[329383824,1718304633297,-279.69657276,0.00011778,2]
[329383826,1718304633326,-182.29342724,0.00011778,2]
[329383827,1718304633340,-506.57,0.00013466,2]
[329383828,1718304633353,-157.63013087,0.000135,2]
[329383829,1718304633374,-225.62325003,0.000136,4]
[329383830,1718304633385,-26.72089216,0.00013699,2]
[329383831,1718304633447,-194.30910784,0.00013699,2]
[329383832,1718304633459,-900.0,0.000137,5]
[329383833,1718304633482,-1200.0,0.000138,5]
[329383834,1718304633492,-1269.56531,0.0001386,2]
[329383835,1718304633502,-500.0,0.00013888,2]
[329383836,1718304633513,-219.65,0.0001389,2]
[329383837,1718304633524,-150.0,0.00013899,2]
[329383838,1718304633536,-615.4421,0.000139,2]
[329383839,1718304633546,-829.38072415,0.000139,2]
[329383840,1718304633564,-3838.99251981,0.000139,2]
[329383841,1718304633725,-2526.24118019,0.000139,2]
[329383842,1718304633736,-589.033,0.000139,2]
[329383843,1718304633746,-167.60440198,0.000139,2]
[329383844,1718304633758,-330.9619,0.000139,2]
[329383845,1718304633768,-1373.6651,0.000139,2]
[329383846,1718304633792,-1762.09997314,0.000139,2]
[329383847,1718304633809,-1416.216,0.000139,2]
[329383848,1718304633821,-173.30371156,0.000139,2]
[329383849,1718304633833,-1000.0,0.000139,2]
[329383850,1718304633847,-2209.3434531,0.000139,2]
[329383851,1718304633860,-313.48100007,0.000139,2]
[329383852,1718304633876,-348.89010204,0.000139,2]
[329383853,1718304633906,-291.505,0.000139,2]
[329383854,1718304633920,-399.12662878,0.000139,2]
[329383855,1718304633958,-3937.65381601,0.000139,2]
[329383856,1718304633974,-1500.0,0.000139,5]
[329383857,1718304633987,-1489.76345477,0.000139,2]
[329383858,1718304633997,-188.80861575,0.000139,2]
[329383859,1718304634009,-324.96417259,0.000139,2]
[329383860,1718304634019,-1165.27884013,0.000139,2]
[329383861,1718304634033,-412.75360643,0.0001396,2]
[329383862,1718304634044,-43.89583502,0.0001399,2]
[329383863,1718304634060,-108.11416498,0.0001399,2]
[329383864,1718304634080,-152.01,0.0001399,2]
[329383865,1718304634112,-152.01,0.0001399,2]
[329383866,1718304634125,-152.01,0.0001399,2]
[329383867,1718304634138,-9339.50598238,0.00013996,2]
[329383868,1718304634151,-6829.33922052,0.00013996,2]
[329383869,1718304634165,-1910.8413434,0.00013996,2]
[329383870,1718304634184,-1007.0363095,0.00013996,2]
[329383871,1718304634198,-1625.52061624,0.00013998,2]
[329383872,1718304634238,-300.3230962,0.00013998,2]
[329383873,1718304634256,-204.99679615,0.00013998,2]
[329383874,1718304634274,-1000.0,0.00013998,2]
[329383875,1718304634290,-3793.24660495,0.00013998,2]
[329383876,1718304634302,-3024.58940129,0.00013998,2]
[329383877,1718304634317,-238.25486485,0.00013998,2]
[329383878,1718304634338,-743.18044332,0.00013998,2]
[329383879,1718304634372,-625.85456106,0.00013998,2]
[329383880,1718304634392,-217.89154337,0.00013998,2]
[329383881,1718304634414,-155.33373452,0.00013998,2]
[329383882,1718304634465,-182.09019871,0.00013998,2]
[329383883,1718304634489,-271.00830979,0.00013998,2]
[329383884,1718304634506,-282.95218659,0.00013998,2]
[329383885,1718304634529,-645.83379313,0.00013998,2]
[329383886,1718304634545,-155.0,0.00013998,2]
[329383887,1718304634562,-1157.98675746,0.00013998,2]
[329383888,1718304634580,-155.09956307,0.00013998,2]
[329383889,1718304634600,-236.29245874,0.00013998,2]
[329383890,1718304634622,-525.20985214,0.00013998,2]
[329383891,1718304634642,-374.55047095,0.00013998,2]
[329383892,1718304634663,-403.3762568,0.00013998,2]
[329383893,1718304634682,-662.09701669,0.00013998,2]
[329383894,1718304634710,-4782.9550006,0.00013998,2]
[329383895,1718304634724,-844.79301962,0.00013998,2]
[329383896,1718304634744,-647.67858835,0.00013998,2]
[329383897,1718304634776,-9222.56534114,0.00013999,2]
[329383898,1718304634813,-364.20577069,0.00013999,2]
[329383899,1718304634858,-515.0,0.00014,2]
[329383900,1718304634882,-7338.12711773,0.00014,2]
[329383901,1718304634913,-1958.46774534,0.00014,2]
[329383902,1718304634948,-3219.86003655,0.00014,2]
[329383903,1718304635004,-195321.94828434,0.00014,2]
[329383904,1718304635025,-5069.16032113,0.00014,2]
[329383907,1718304635079,-818.82444517,0.00014,2]
[329383909,1718304635122,-757.13168339,0.00014,2]
[329383910,1718304635182,-1064.71783951,0.00014,2]
[329383911,1718304635266,-1836.54472027,0.00014,2]
[329383915,1718304639584,-411038.85773397,0.00014,2]
[329383916,1718304639604,-2571.36191226,0.00014,2]
[329383917,1718304639638,-322.77353232,0.00014,2]
[329383918,1718304639727,-279305.6738971,0.00014,2]
[329383919,1718304639951,-6982.16203434,0.00014,2]
[329383920,1718304640286,-18581.25202559,0.00014,2]
[329383921,1718304640300,-798.65000003,0.00014,2]
[329383922,1718304640608,-7355.05477576,0.00014,2]
[329383923,1718304640628,-1283.46999995,0.00014,2]
[329383924,1718304640654,-17024.95431087,0.00014,2]
[329383925,1718304640676,-4749.86869948,0.00014,2]
[329383926,1718304640777,-2371.16598374,0.00014,2]
[329383927,1718304641145,-2572.7999904,0.00014,2]
[329383928,1718304641173,-18049.5,0.00014,2]
[329383941,1718304643652,-450.13383767,0.000139,2]
[329383942,1718304643680,-7049.86616233,0.000139,2]
[329383943,1718304643690,-141.73903338,0.00014,2]
[329383947,1718304644533,-2507.44030831,0.00014,2]
[329383948,1718304644801,-65312.83688497,0.00014,2]
[329383949,1718304645192,-693439.90005648,0.00014,2]
[329383950,1718304645242,-108259.65268176,0.00014,2]
[329383951,1718304645322,-299.471942,0.00014,2]
[329383952,1718304645508,-83746.783,0.00014,2]
[329383953,1718304645786,-6768.99249058,0.00014,2]
[329383954,1718304646055,-3215.48883036,0.00014,2]
[329383960,1718304646300,-535.23412698,0.00014,2]
[329384059,1718304647844,-2726.21859119,0.00014,2]
[329384085,1718304648276,-489.06140595,0.00014,2]
[329384126,1718304649143,-868.475,0.00014,2]
[329384149,1718304649616,-13117.67134579,0.00014,2]
[329384156,1718304649725,-1483.31438304,0.00014,2]
[329384180,1718304668298,156.40834858,0.00010499,2]
[329384181,1718304697056,27292.088941,0.00010499,2]
[329384182,1718304705760,26057.69234861,0.00010499,2]
[329384183,1718304720006,17371.79489908,0.00010499,2]
[329384184,1718304754320,377.78463481,0.00010499,2]
[329384186,1718304761455,4053.13635835,0.00010499,2]
[329384187,1718304762649,19655.56812232,0.00010499,2]
[329384193,1718304851625,263.02861684,0.00010499,2]
[329384196,1718304867613,241.7037404,0.00010499,2]
[329384199,1718305202584,150.0,0.00010499,2]
[329384202,1718305644517,-886.26256298,0.00011423,2]
[329384203,1718305644610,-585.82,0.00011425,2]
[329384204,1718305644676,-1681.9860696,0.00011678,2]
[329384205,1718305726740,556.52,0.00010927,2]
[329384206,1718305755169,-2072.42667073,0.00011677,2]
[329384254,1718305832826,-546.41723642,0.00011677,2]
[329384256,1718305832845,-424.40050855,0.00012598,2]
[329384257,1718305832866,-300.0,0.00012805,2]
[329384259,1718305832877,-151.60110296,0.00012806,2]
[329384261,1718305832891,-604.0,0.00012806,2]
[329384263,1718305832904,-3670.58140367,0.00012806,2]
[329384269,1718305833007,-3809.32419854,0.00012806,2]
[329384275,1718305833199,-387.0989336,0.00012806,2]
[329384276,1718305833588,-436.578,0.00012806,2]
[329384277,1718305833610,-3466.7,0.00012806,2]
[329384278,1718305833637,-350.0,0.00012806,2]
[329384279,1718305833655,-11014.11636123,0.00012806,2]
[329384280,1718305833672,-250.0,0.00012806,2]
[329384281,1718305833690,-282.84,0.00012822,2]
[329384282,1718305833717,-1000.0,0.00012856,2]
[329384283,1718305833748,-1352.31,0.00012859,2]
[329384284,1718305833760,-1666.62153858,0.00012876,2]
[329384285,1718305833844,-694.75846142,0.00012876,2]
[329384286,1718305833884,-763.2,0.00012891,2]
[329384287,1718305833904,-1259.31,0.00012914,2]
[329384288,1718305833921,-527.53,0.0001295,2]
[329384289,1718305833942,-1594.65880338,0.00012973,2]
[329384290,1718305833969,-5302.21119662,0.00012973,2]
[329384291,1718305833983,-4123.2,0.00012981,2]
[329384292,1718305833995,-677.22,0.000131,2]
[329384293,1718305834015,-556.52,0.00013191,2]
[329384294,1718305834040,-183.4345884,0.00013298,2]
[329384295,1718305834081,-185.5,0.00013452,2]
[329384296,1718305834140,-193.18,0.00013699,2]
[329384297,1718305834185,-1004.62,0.00013699,2]
[329384298,1718305834196,-200.0,0.00013699,2]
[329384299,1718305834206,-299.99,0.00013878,2]
[329384300,1718305834232,-200.0,0.00013887,2]
[329384301,1718305834252,-500.0,0.00013887,2]
[329384302,1718305834263,-200.0,0.00013888,2]
[329384303,1718305834302,-500.0,0.00013888,2]
[329384304,1718305834321,-200.0,0.00013888,2]
[329384305,1718305834349,-743.3541,0.000139,2]
[329384306,1718305834368,-500.0,0.000139,2]
[329384307,1718305834383,-221.28168508,0.000139,2]
[329384308,1718305834397,-1615.25830873,0.000139,2]
[329384309,1718305834408,-446.92903642,0.000139,2]
[329384310,1718305834418,-1879.65821695,0.000139,2]
[329384311,1718305834442,-7500.0,0.000139,2]
[329384312,1718305834479,-3014.90402111,0.000139,2]
[329384313,1718305834510,-734.39,0.0001399,3]
[329384314,1718305834534,-152.01,0.0001399,2]
[329384315,1718305834557,-152.01,0.0001399,2]
[329384316,1718305834578,-19457.14360712,0.00014,2]
[329384317,1718305834634,-1432.68764726,0.00014,2]
[329384318,1718305834764,-637.7,0.00014,2]
[329384319,1718305834811,-6849.98086953,0.00014,2]
[329384320,1718305834826,-711.6,0.00014,2]
[329384321,1718305834884,-7412.92945812,0.00014,2]
[329384322,1718305834916,-11831.27812418,0.00014,2]
[329384345,1718305839661,-260.49327611,0.00014,2]
[329384346,1718305839674,-489.7303052,0.00014,2]
[329384347,1718305839788,-12693.60089234,0.00014,2]
[329384348,1718305840225,-2030.00005,0.00014,2]
[329384349,1718305840384,-7657.95,0.00014,2]
[329384488,1718305844362,-346.0135875,0.000139,2]
[329384500,1718305844644,-413.77459979,0.000139,2]
[329384514,1718305844914,-723.36550679,0.000139,2]
[329384515,1718305844957,-6016.84630592,0.000139,2]
[329384517,1718305844971,-7953.15369408,0.00014,2]
[329384521,1718305845002,-343880.34999999,0.00014,2]
[329384523,1718305845022,-3348.0,0.00014,2]
[329384527,1718305845078,-489485.77844877,0.00014,2]
[329384529,1718305845093,-971.8102777,0.00014,2]
[329384543,1718305845363,-4169.59349161,0.00014,2]
[329384545,1718305845396,-5123.68765908,0.00014,2]
[329384548,1718305845417,-7160.46370556,0.00014,2]
[329384550,1718305845435,-20192.46375984,0.00014,2]
[329384553,1718305845453,-7131.97448267,0.00014,2]
[329384557,1718305845510,-24148.839795,0.00014,2]
[329384559,1718305845533,-6584.811088,0.00014,2]
[329384562,1718305845581,-18394.2051105,0.00014,2]
[329384564,1718305845597,-16289.06553561,0.00014,2]
[329384571,1718305845626,-9044.45776391,0.00014,2]
[329384575,1718305845641,-1861.89006143,0.00014,2]
[329384613,1718305846094,-19297.94550114,0.00014,2]
[329384780,1718305847589,-1565.0,0.00014,2]
[329384825,1718305847926,-1384.35305882,0.00014,2]
[329384836,1718305848052,-267.53038574,0.00014,2]
[329384892,1718305848648,-241023.22465173,0.00014,2]
[329384921,1718305848984,-2722.13144878,0.00014,2]
[329384922,1718305848998,-1106.91602782,0.00014,2]
[329384924,1718305849388,-459.57854374,0.00014,2]
[329384940,1718305850112,-284.02268952,0.00014,2]
[329384954,1718306272883,587.7,0.0001022,2]
[329384957,1718306529067,605.28,0.00010959,2]
[329384958,1718306598563,4238.20791159,0.00010955,2]
[329384959,1718306632988,605.28,0.00010959,2]
[329384960,1718306812768,558.31,9.69e-05,2]
[329384961,1718306827221,-2000.8517388,0.00011041,2]
[329384962,1718306827265,-300.0,0.00011041,2]
[329384963,1718306827314,-150.0,0.00011041,2]
[329384964,1718306827343,-519.05652705,0.00011042,2]
[329384965,1718306827395,-156.78906714,0.00011042,2]
[329384966,1718306827423,-4617.77145204,0.00011042,2]
[329384967,1718306827464,-1796.28532413,0.00011156,2]
[329384968,1718306827500,-159.85756082,0.00011167,2]
[329384969,1718306827546,-707.28,0.00011267,2]
[329384970,1718306827586,-531.15011943,0.00011472,2]
[329384971,1718306827643,-242.22,0.00011575,2]
[329384972,1718306827700,-8499.8235,0.00011577,2]
[329384973,1718306827746,-1852.42,0.00011603,2]
[329384974,1718306827821,-150.0,0.00011616,2]
[329384975,1718306827880,-533.27,0.00011663,2]
[329384976,1718306827908,-200.0,0.00011672,2]
[329384977,1718306827947,-159.85756079,0.00011694,2]
[329384978,1718306827992,-150.99,0.00011694,2]
[329384979,1718306828040,-200.0,0.00011698,2]
[329384980,1718306828066,-2451.28,0.00011698,2]
[329384981,1718306828105,-500.0,0.00011731,2]
[329384982,1718306828154,-18538.00745704,0.00011731,2]
[329384984,1718306954197,-1000.25333624,0.00011613,2]
[329384985,1718306954232,-522.84728183,0.00011614,2]
[329384986,1718306954283,-522.84728183,0.00011614,2]
[329384987,1718306954347,-39214.8161001,0.00011616,2]
[329384988,1718306967172,-6969.3713,0.00011616,2]
[329385016,1718307032943,-150.0,0.00011615,2]
[329385017,1718307032960,-269.7,0.00011616,2]
[329385018,1718307032996,-13133.4825999,0.00011616,2]
[329385019,1718307033053,-1000.0,0.00011677,2]
[329385020,1718307033073,-5351.99254296,0.00011731,2]
[329385021,1718307033106,-185.5,0.00011749,2]
[329385022,1718307033120,-250.0,0.00011758,2]
[329385023,1718307033146,-250.0,0.00011888,2]
[329385024,1718307033160,-1669.69,0.00011909,2]
[329385025,1718307033180,-558.31,0.00011954,2]
[329385026,1718307033192,-499.99,0.00011954,2]
[329385027,1718307033209,-2982.15,0.00011971,2]
[329385028,1718307033227,-158.42,0.00012066,2]
[329385029,1718307033240,-5155.46,0.00012076,2]
[329385030,1718307033252,-10212.3,0.00012084,2]
[329385031,1718307033270,-1000.0,0.00012084,2]
[329385032,1718307033304,-159.85756079,0.0001222,2]
[329385033,1718307033352,-158.42,0.0001238,2]
[329385034,1718307033363,-167.19,0.00012388,2]
[329385035,1718307033376,-170.59,0.0001245,2]
[329385036,1718307033389,-496.97849707,0.00012458,2]
[329385037,1718307033410,-287.25106551,0.00012596,2]
[329385038,1718307033426,-156.16625566,0.00012596,2]
[329385039,1718307033458,-302.55336961,0.00012598,2]
[329385040,1718307033503,-158.42,0.00012695,2]
[329385041,1718307033515,-159.85756079,0.00012747,2]
[329385042,1718307033526,-210.0,0.00012777,2]
[329385043,1718307033544,-896.16003082,0.00012838,2]
[329385044,1718307033577,-172.53,0.00012865,2]
[329385045,1718307033603,-756.84,0.00013041,2]
[329385046,1718307033614,-756.84,0.00013044,2]
[329385047,1718307033632,-756.84,0.00013048,2]
[329385048,1718307033644,-756.84,0.00013051,2]
[329385049,1718307033662,-756.84,0.00013054,2]
[329385050,1718307033688,-22239.32629279,0.00013055,2]
[329385051,1718307033707,-756.84,0.00013058,2]
[329385052,1718307033730,-756.84,0.00013061,2]
[329385053,1718307033760,-756.84,0.00013065,2]
[329385054,1718307033771,-756.84,0.00013068,2]
[329385055,1718307033783,-756.84,0.00013071,2]
[329385056,1718307033799,-756.84,0.00013075,2]
[329385057,1718307033811,-756.84,0.00013078,2]
[329385058,1718307033822,-756.84,0.00013082,2]
[329385059,1718307033834,-756.84,0.00013085,2]
[329385060,1718307033848,-756.84,0.00013089,2]
[329385061,1718307033862,-24.07991152,0.00013092,2]
[329385062,1718307033923,-732.76008848,0.00013092,2]
[329385063,1718307033940,-756.84,0.00013095,2]
[329385064,1718307033952,-756.84,0.00013099,2]
[329385065,1718307033964,-756.84,0.00013102,2]
[329385066,1718307033978,-756.84,0.00013106,2]
[329385067,1718307033991,-159.85756079,0.00013273,2]
[329385068,1718307034002,-1302.76719431,0.00013298,2]
[329385069,1718307034018,-751.9144439,0.0001358,2]
[329385070,1718307034030,-1000.0,0.00013595,2]
[329385071,1718307034042,-751.9144439,0.000136,2]
[329385072,1718307034071,-681.33216056,0.00013686,2]
[329385073,1718307034082,-403.68036357,0.00013698,2]
[329385074,1718307034093,-156.31376728,0.00013698,2]
[329385075,1718307034104,-1000.0,0.00013698,2]
[329385076,1718307034116,-200.0,0.00013699,2]
[329385077,1718307034134,-2751.0,0.00013699,2]
[329385078,1718307034146,-1324.94,0.00013699,2]
[329385079,1718307034161,-500.0,0.00013699,2]
[329385080,1718307034188,-497.46,0.00013699,2]
[329385081,1718307034199,-1235.15,0.00013699,2]
[329385082,1718307034212,-118972.9018,0.000137,2]
[329385083,1718307034223,-150.0,0.00013731,2]
[329385084,1718307034236,-150.0,0.00013736,2]
[329385085,1718307034247,-150.0,0.00013748,2]
[329385086,1718307034258,-150.0,0.00013753,2]
[329385087,1718307034269,-150.0,0.00013766,2]
[329385088,1718307034279,-382.96459913,0.00013784,2]
[329385089,1718307034293,-150.0,0.00013786,2]
[329385090,1718307034306,-4891.7275,0.000138,2]
[329385091,1718307034332,-41251.329,0.000138,2]
[329385092,1718307034343,-802.9168,0.000138,2]
[329385093,1718307034354,-159.85756079,0.000138,2]
[329385094,1718307034375,-407.9109768,0.000138,2]
[329385095,1718307034425,-324.44829046,0.000138,2]
[329385096,1718307034436,-1644.70093984,0.000138,2]
[329385097,1718307034447,-150.0,0.00013803,2]
[329385098,1718307034459,-300.0,0.00013813,2]
[329385099,1718307034490,-407.91097677,0.00013825,2]
[329385100,1718307034747,-150.0,0.00013835,2]
[329385101,1718307034784,-150.0,0.00013842,2]
[329385103,1718307034806,-407.91097677,0.0001385,2]
[329385106,1718307034822,-252.46478504,0.00013856,2]
[329385108,1718307034834,-156.15411394,0.0001386,2]
[329385109,1718307034847,-150.0,0.00013861,2]
[329385112,1718307034872,-150.0,0.00013864,2]
[329385114,1718307034888,-407.91097677,0.00013875,2]
[329385115,1718307034899,-150.0,0.00013885,2]
[329385117,1718307034911,-500.0,0.00013888,2]
[329385119,1718307034923,-752.03196948,0.000139,2]
[329385121,1718307034938,-203917.5603,0.000139,2]
[329385123,1718307034949,-74359.3133,0.000139,2]
[329385125,1718307034962,-174.71702799,0.000139,2]
[329385126,1718307034974,-1480.65344966,0.000139,2]
[329385127,1718307034988,-155.94476457,0.000139,2]
[329385128,1718307035001,-407.91097677,0.000139,2]
[329385129,1718307035024,-3000.3363,0.000139,2]
[329385130,1718307035062,-183.86806516,0.000139,2]
[329385131,1718307035094,-188.20708037,0.000139,2]
[329385132,1718307035121,-150.0,0.00013906,2]
[329385133,1718307035134,-150.0,0.0001391,2]
[329385134,1718307035149,-150.0,0.00013926,2]
[329385135,1718307035164,-150.0,0.00013936,2]
[329385136,1718307035175,-150.0,0.00013949,2]
[329385137,1718307035187,-150.0,0.00013958,2]
[329385138,1718307035198,-150.0,0.0001396,2]
[329385139,1718307035211,-150.0,0.00013963,2]
[329385140,1718307035222,-187.841831,0.00013973,2]
[329385141,1718307035240,-150.0,0.00013974,2]
[329385142,1718307035255,-150.0,0.00013976,2]
[329385143,1718307035266,-150.0,0.00013983,2]
[329385144,1718307035280,-150.0,0.00013987,2]
[329385145,1718307035291,-150.0,0.00013987,2]
[329385146,1718307035303,-414.97041984,0.0001399,2]
[329385147,1718307035314,-414.97041984,0.0001399,2]
[329385148,1718307035328,-151.99,0.0001399,2]
[329385149,1718307035339,-151.99,0.0001399,2]
[329385150,1718307035351,-151.99,0.0001399,2]
[329385151,1718307035363,-599.27979208,0.00013996,2]
[329385152,1718307035377,-191.35915009,0.00013996,2]
[329385153,1718307035388,-1144.98069744,0.00013996,2]
[329385154,1718307035401,-186.30175631,0.00013996,2]
[329385155,1718307035415,-185.52905548,0.00013996,2]
[329385156,1718307035426,-217.02722813,0.00013996,2]
[329385157,1718307035441,-241.02418219,0.00013996,2]
[329385158,1718307035453,-155.0,0.00013996,2]
[329385159,1718307035465,-155.35592478,0.00013996,2]
[329385160,1718307035486,-7896.8672671,0.00013997,2]
[329385161,1718307035498,-158.39893901,0.00013998,2]
[329385162,1718307035518,-537.90748487,0.00013998,2]
[329385163,1718307035539,-155.0,0.00013998,2]
[329385164,1718307035556,-155.0,0.00013998,2]
[329385165,1718307035567,-155.0,0.00013998,2]
[329385166,1718307035608,-2195.01899183,0.00013998,2]
[329385167,1718307035621,-2823.25950554,0.00013998,2]
[329385168,1718307035660,-155.0,0.00013998,2]
[329385169,1718307035674,-163.3366024,0.00013998,2]
[329385170,1718307035690,-715.98008293,0.00013998,2]
[329385171,1718307035703,-205.70870175,0.00013998,2]
[329385172,1718307035716,-5584.2730595,0.00013998,2]
[329385173,1718307035728,-2337.22101959,0.00013998,2]
[329385174,1718307035741,-1253.59956446,0.00013998,2]
[329385175,1718307035764,-263.89187326,0.00013998,2]
[329385176,1718307035776,-176.54095284,0.00013998,2]
[329385177,1718307035794,-268.79574159,0.00013998,2]
[329385178,1718307035818,-4292.57166119,0.00013998,2]
[329385179,1718307035830,-625.97046574,0.00013998,2]
[329385180,1718307035844,-786.5384728,0.00013998,2]
[329385181,1718307035854,-545.9510705,0.00013998,2]
[329385182,1718307035865,-155.16259267,0.00013998,2]